bitfinex/quotes_ETHUSD_20241231
["timestamp","ask_amount","ask_price","bid_price","bid_amount"]
[1735651160887,0.00292,3421.3,3420.3,0.8257]
[1735651161375,0.00292,3421.3,3420.7,0.8257]
[1735651162653,0.55292,3421.3,3420.5,2.9235]
[1735651162828,0.096457,3420.7,3420.2,3.74949]
[1735651163009,0.096457,3420.7,3420.2,0.8257]
[1735651163314,0.096457,3420.7,3420.4,2.92359]
[1735651163715,0.096457,3420.7,3420.5,3.74922]
[1735651163947,0.096457,3420.7,3420.5,0.8257]
[1735651164252,0.096457,3420.7,3420.6,0.65653925]
[1735651164556,0.096457,3420.7,3420.6,3.57999925]
[1735651164958,0.096457,3420.7,3420.6,0.65653925]
[1735651165149,0.096457,3420.7,3420.5,0.8257]
[1735651166063,0.096457,3420.7,3420.6,2.92346]
[1735651166528,0.096457,3420.7,3420.6,8.89751246]
[1735651166722,0.096457,3420.7,3420.6,5.73947246]
[1735651166922,0.096457,3420.7,3420.5,0.8257]
[1735651167223,0.096457,3420.7,3420.6,2.92346]
[1735651167456,0.096457,3420.7,3420.6,6.53179725]
[1735651167765,0.096457,3420.7,3420.6,6.09998725]
[1735651168510,0.096457,3420.7,3420.6,3.57997725]
[1735651168797,0.096457,3420.7,3420.6,8.64847971]
[1735651169353,0.096457,3420.7,3420.6,6.39598971]
[1735651169759,0.096457,3420.7,3420.6,9.41327971]
[1735651170501,0.096457,3420.7,3420.6,6.39598971]
[1735651171059,0.096457,3420.7,3420.6,0.65651725]
[1735651171260,0.096457,3420.7,3420.5,0.8257]
[1735651171900,0.096457,3420.7,3420.5,3.64171246]
[1735651172059,0.096457,3420.7,3420.5,3.63879246]
[1735651172403,0.096457,3420.7,3420.6,2.49564]
[1735651172772,0.096457,3420.7,3420.5,0.82278]
[1735651172994,0.096457,3420.7,3420.4,2.92357]
[1735651173173,0.096457,3420.7,3420.5,2.92354]
[1735651174303,0.096457,3420.7,3420.5,3.49749525]
[1735651175117,0.096457,3420.7,3420.6,2.92346]
[1735651175579,0.096457,3420.7,3420.6,4.93297]
[1735651175778,0.096457,3420.7,3420.6,2.92346]
[1735651176015,0.096457,3420.7,3420.6,3.70156]
[1735651176222,0.096457,3420.7,3420.6,4.12911153]
[1735651176587,0.096457,3420.7,3420.6,7.07612153]
[1735651176785,0.096457,3420.7,3420.6,4.12911153]
[1735651177329,0.096457,3420.7,3420.6,6.63956153]
[1735651177686,0.096457,3420.7,3420.6,4.12911153]
[1735651178680,0.096457,3420.7,3420.6,0.7781]
[1735651178920,0.096457,3420.7,3420.4,2.92361]
[1735651179295,0.096457,3420.7,3420.5,2.92352]
[1735651180227,0.096457,3420.7,3420.3,0.7781]
[1735651180413,0.096457,3420.7,3420.0,3.70204]
[1735651180609,0.096457,3420.7,3420.0,0.7781]
[1735651180798,0.096457,3420.7,3420.2,2.92379]
[1735651181126,0.096457,3420.7,3420.3,2.92371]
[1735651181505,0.096457,3420.7,3420.0,0.7781]
[1735651181688,0.096457,3420.7,3420.4,2.92355]
[1735651182803,0.096457,3420.7,3420.0,0.7781]
[1735651183003,0.096457,3420.7,3420.2,2.92378]
[1735651183614,0.096457,3420.7,3420.0,3.70204]
[1735651184086,0.096457,3420.7,3420.1,2.92388]
[1735651184457,0.096457,3420.7,3420.0,0.7781]
[1735651184668,0.096457,3420.7,3420.2,2.92378]
[1735651184991,0.096457,3420.7,3420.4,2.92363]
[1735651185143,0.096457,3420.7,3420.2,2.92376]
[1735651185349,0.096457,3420.7,3420.0,3.70205]
[1735651185570,0.096457,3420.7,3420.0,2.92395]
[1735651185780,0.3984297,3420.7,3420.0,2.92395]
[1735651186801,0.096457,3420.7,3420.1,2.92387]
[1735651187452,0.096457,3420.7,3420.5,2.92354]
[1735651188048,0.096457,3420.7,3420.4,0.7781]
[1735651188253,0.096457,3420.7,3420.6,2.92346]
[1735651192674,0.096457,3420.7,3420.2,2.92373]
[1735651192895,0.096457,3420.7,3420.2,2.92378]
[1735651193197,0.096457,3420.7,3420.0,0.7889]
[1735651193501,0.096457,3420.7,3420.0,1.51324106]
[1735651193898,0.096457,3420.7,3420.3,2.92365]
[1735651195201,0.096457,3420.7,3420.6,2.92346]
[1735651197068,0.096457,3420.7,3420.6,3.71236]
[1735651197659,0.096457,3420.7,3420.6,2.92346]
[1735651197869,0.096457,3420.7,3420.4,0.7889]
[1735651198090,0.096457,3420.7,3420.5,2.92354]
[1735651199105,0.096457,3420.7,3420.1,2.01549942]
[1735651199277,0.096457,3420.7,3420.2,3.86574309]
[1735651199481,0.096457,3420.7,3420.6,2.92346]
[1735651199683,0.096457,3420.7,3420.6,5.99551]
[1735651199875,0.096457,3420.7,3420.6,7.92346]
[1735651200081,0.096457,3420.7,3420.6,2.92346]
[1735651200310,0.096457,3420.7,3420.5,2.92351]
[1735651200772,0.096457,3420.7,3420.2,2.16854251]
[1735651201111,0.096457,3420.7,3420.6,2.92346]
[1735651202173,0.096457,3420.7,3420.3,2.53107812]
[1735651202485,0.096457,3420.7,3420.4,2.92361]
[1735651203207,0.096457,3420.7,3420.4,2.92355]
[1735651203448,0.096457,3420.7,3420.5,2.92348]
[1735651203871,0.096457,3420.7,3420.6,2.92346]
[1735651204366,0.096457,3420.7,3420.5,2.92353]
[1735651205026,0.096457,3420.7,3420.3,1.22659942]
[1735651205190,0.096457,3420.7,3420.5,2.92354]
[1735651207240,0.096457,3420.7,3420.6,1.01299611]
[1735651208013,0.096457,3420.7,3420.6,3.93645611]
[1735651208703,0.096457,3420.7,3420.6,1.01299611]
[1735651209571,0.6984177,3420.7,3420.3,1.22659942]
[1735651209997,0.6984177,3420.7,3420.3,0.64294542]
[1735651210392,2.92355,3420.5,3420.3,0.64294542]
[1735651211120,0.6984177,3420.7,3420.3,0.64294542]
[1735651211479,0.6984177,3420.7,3419.3,2.92452]
[1735651211480,1.82767299,3420.4,3419.6,2.92431]
[1735651211987,1.82767299,3420.4,3419.9,2.92406]
[1735651212414,1.22864798,3420.3,3419.9,2.92406]
[1735651212721,1.22864798,3420.3,3419.7,2.92416]
[1735651212900,1.22864798,3420.3,3419.8,2.81601246]
[1735651213101,1.22864798,3420.3,3420.2,2.9238]
[1735651213303,1.22864798,3420.3,3420.2,6.15261]
[1735651213492,1.22864798,3420.3,3420.2,5.8608]
[1735651213689,1.22864798,3420.3,3420.2,2.9238]
[1735651213891,1.22864798,3420.4,3420.3,2.92372]
[1735651214685,1.22864798,3420.4,3420.1,0.7712]
[1735651214912,0.096457,3420.7,3420.2,2.92372]
[1735651215109,0.096457,3420.7,3419.8,2.61109914]
[1735651215313,0.096457,3420.7,3419.8,4.76400914]
[1735651215710,2.92354,3420.6,3419.8,1.83989914]
[1735651216021,0.096457,3420.7,3420.0,2.92393]
[1735651216212,1.22864798,3420.6,3419.8,5.74012246]
[1735651216410,1.22864798,3420.6,3420.0,2.92397]
[1735651216584,2.08169015,3420.6,3420.0,2.92397]
[1735651217128,0.85304217,3420.6,3420.1,2.92387]
[1735651217346,4.32510498,3420.7,3420.1,2.92387]
[1735651218559,1.32510498,3420.7,3420.1,2.92387]
[1735651218856,1.32510498,3420.7,3419.5,3.58721246]
[1735651219026,1.32510498,3420.7,3419.9,2.81601246]
[1735651219557,0.096457,3420.7,3420.1,2.92381]
[1735651219751,0.4325105,3420.6,3419.9,2.92403]
[1735651219955,0.4325105,3420.6,3419.7,2.9242]
[1735651220316,0.4325105,3420.6,3419.8,2.92413]
[1735651220518,0.4325105,3420.6,3419.7,1.22272679]
[1735651220718,3.0,3420.5,3419.7,1.22272679]
[1735651220945,0.64524275,3420.4,3419.7,1.22272679]
[1735651221527,0.55,3420.3,3419.4,1.22272679]
[1735651221817,2.92386,3420.2,3419.4,1.22272679]
[1735651222263,0.55,3420.3,3419.4,4.14720679]
[1735651222555,0.54238907,3420.2,3419.4,1.22272679]
[1735651223156,0.55,3420.1,3419.0,4.14752679]
[1735651223458,0.55,3420.1,3419.1,2.92474]
[1735651223752,2.92407,3419.9,3419.0,1.22272679]
[1735651223915,0.55,3420.1,3419.0,1.22272679]
[1735651224122,2.92425,3419.7,3419.0,1.22272679]
[1735651224753,3.47434,3419.6,3418.7,1.22272679]
[1735651224958,2.92441,3419.5,3418.7,1.22272679]
[1735651225642,3.0,3419.4,3418.7,1.22272679]
[1735651225837,0.647441,3419.3,3418.7,1.22272679]
[1735651226257,0.647441,3419.3,3418.5,5.74122246]
[1735651226642,0.647441,3419.3,3418.5,2.81601246]
[1735651227024,0.647441,3419.3,3418.4,2.92531]
[1735651227226,2.92484,3419.0,3418.0,4.14838679]
[1735651227465,0.55,3418.8,3417.9,1.22272679]
[1735651227968,0.55,3418.6,3417.9,1.22272679]
[1735651228169,2.92544,3418.3,3417.9,1.22272679]
[1735651228325,6.47555,3418.2,3417.9,1.22272679]
[1735651228525,3.55,3418.2,3417.9,1.22272679]
[1735651228730,3.55,3418.2,3417.2,2.92635]
[1735651228731,0.355,3418.1,3417.0,4.03873925]
[1735651228931,0.55,3418.3,3417.2,2.92628]
[1735651229130,2.92491,3419.0,3417.7,2.92593]
[1735651229326,3.0,3419.1,3417.7,2.92593]
[1735651229545,2.925,3418.8,3417.7,2.92593]
[1735651229792,3.47518,3418.6,3417.5,2.92608]
[1735651229997,3.47518,3418.6,3417.2,2.92629]
[1735651229998,3.55,3418.4,3417.2,2.92629]
[1735651230203,3.55,3418.2,3417.0,3.63711246]
[1735651230500,0.55,3418.4,3417.1,2.92644]
[1735651230694,3.55,3418.3,3417.2,2.92636]
[1735651230836,0.647538,3418.2,3417.0,3.63711246]
[1735651231534,0.2925,3418.7,3417.2,2.92636]
[1735651231865,0.2925,3418.7,3417.3,2.81601246]
[1735651232071,0.2925,3418.7,3417.7,2.92591]
[1735651232265,0.2925,3418.7,3417.8,2.92584]
[1735651232467,0.2925,3418.7,3417.8,0.85899066]
[1735651232675,1.2241115,3418.8,3417.8,0.85899066]
[1735651232845,1.2241115,3418.8,3417.9,2.92574]
[1735651233261,1.2241115,3418.8,3417.8,3.78482066]
[1735651233543,3.55,3418.7,3418.0,0.03787854]
[1735651233748,3.55,3418.7,3417.9,0.0378846]
[1735651233936,0.647508,3418.6,3418.1,0.03787249]
[1735651234135,3.0,3418.9,3418.0,0.03787854]
[1735651234473,0.55,3418.8,3418.1,0.03787249]
[1735651234645,3.0,3418.9,3418.1,0.03787249]
[1735651234842,3.0,3418.9,3418.0,2.92568]
[1735651235048,3.0,3418.9,3418.2,0.03786643]
[1735651235259,0.592483,3418.8,3418.1,0.03787249]
[1735651235476,0.592483,3418.8,3418.3,0.03786038]
[1735651235637,0.592483,3418.8,3418.2,0.03786643]
[1735651235835,0.592483,3418.8,3417.8,2.92581]
[1735651235836,0.55,3419.2,3417.8,2.92581]
[1735651236037,3.0,3419.1,3418.0,2.92565]
[1735651236576,3.55,3418.9,3418.1,0.03751711]
[1735651236772,0.55,3419.1,3418.1,2.92559]
[1735651236930,0.55,3418.9,3418.2,0.03751105]
[1735651237631,0.55,3418.9,3417.9,2.92575]
[1735651237834,0.55,3418.9,3417.7,2.81601246]
[1735651237835,2.92501,3418.8,3418.0,0.03752316]
[1735651238332,0.55,3418.8,3417.9,3.68005]
[1735651238536,0.647484,3418.7,3418.1,0.03750289]
[1735651238732,0.647484,3418.7,3418.0,0.03750895]
[1735651240147,0.55,3418.8,3418.0,0.03750895]
[1735651240475,0.55,3418.8,3418.1,0.03603633]
[1735651240970,0.55,3419.3,3418.2,0.03603028]
[1735651241174,0.55,3418.9,3418.0,2.92564]
[1735651241485,0.55,3418.9,3418.1,0.03603633]
[1735651241785,0.347483,3418.8,3418.1,0.03603633]
[1735651241935,0.55,3419.3,3418.1,0.03603633]
[1735651242140,2.9251,3418.7,3417.6,2.92599]
[1735651242354,0.55,3418.6,3417.6,2.92599]
[1735651242554,0.55,3418.6,3417.7,2.92586]
[1735651242775,0.89751,3418.6,3417.7,2.96192056]
[1735651243078,3.82269,3418.6,3417.7,0.03606056]
[1735651243280,0.55,3418.7,3417.7,0.03606056]
[1735651243618,0.55,3418.5,3417.8,0.03474879]
[1735651243778,0.55,3418.3,3417.2,3.68063]
[1735651243938,0.55,3418.3,3417.4,2.92618]
[1735651244138,0.55,3418.3,3417.5,0.03477406]
[1735651244955,0.55,3418.1,3417.5,0.03477406]
[1735651245638,0.55,3418.1,3417.2,3.68064]
[1735651245854,0.347552,3418.0,3417.3,2.92624]
[1735651246075,0.347552,3418.0,3417.3,2.96134586]
[1735651247999,0.347517,3418.4,3417.3,0.03510586]
[1735651248153,0.347517,3418.4,3417.8,2.92583]
[1735651248355,0.55,3418.7,3417.9,0.03514057]
[1735651248557,0.55,3418.7,3417.9,2.96083057]
[1735651248798,3.55,3418.9,3418.0,0.7543]
[1735651248963,3.0,3418.9,3418.1,0.03512846]
[1735651249169,2.92495,3418.9,3418.1,0.03512846]
[1735651249368,0.55,3418.7,3418.1,0.03512846]
[1735651249876,0.292495,3418.8,3418.1,0.03512846]
[1735651250454,2.92443,3419.5,3418.1,0.03512846]
[1735651250855,2.92425,3419.7,3418.6,0.7543]
[1735651251123,2.92425,3419.7,3418.7,2.92508]
[1735651251289,2.92425,3419.7,3418.7,2.95984533]
[1735651251681,3.0,3419.6,3418.7,2.95984533]
[1735651251879,3.592425,3419.6,3418.7,2.95984533]
[1735651252698,0.55,3419.5,3418.8,2.92496]
[1735651252871,0.55,3419.5,3418.7,0.03476533]
[1735651253079,0.55,3419.5,3418.9,0.0343981]
[1735651253253,0.592425,3419.6,3418.8,0.03440415]
[1735651253454,2.81601246,3420.3,3419.1,0.8256]
[1735651253692,2.92405,3420.0,3419.1,0.8256]
[1735651253995,3.0,3419.7,3419.2,0.03381182]
[1735651254704,0.55,3419.6,3419.2,0.03381182]
[1735651256018,0.55,3419.5,3419.2,0.03381182]
[1735651256232,0.55,3419.3,3418.7,0.8256]
[1735651256411,0.55,3419.3,3418.8,0.03383603]
[1735651256613,0.55,3419.3,3418.7,0.8256]
[1735651256814,0.55,3419.3,3418.8,0.03383603]
[1735651257011,0.55,3419.3,3418.7,0.8256]
[1735651257322,0.55,3419.3,3418.8,0.03383603]
[1735651257630,0.55,3419.3,3418.7,0.8256]
[1735651257924,0.55,3419.3,3418.8,0.03383603]
[1735651258126,3.55,3419.7,3418.8,0.03383603]
[1735651258340,0.55,3419.5,3418.9,2.9249]
[1735651258662,0.55,3419.6,3418.9,0.03382998]
[1735651258992,0.55,3419.9,3418.9,0.03382998]
[1735651259252,3.55,3419.9,3418.7,0.8256]
[1735651259455,2.92357,3420.5,3419.0,0.03382392]
[1735651259724,2.92357,3420.5,3418.5,2.92521]
[1735651259725,0.096457,3420.7,3420.0,2.92395]
[1735651259923,0.096457,3420.7,3419.8,0.8256]
[1735651260109,0.31567358,3420.5,3420.1,0.03375737]
[1735651260426,0.31567358,3420.5,3420.2,0.03375133]
[1735651260727,0.096457,3420.7,3420.0,2.92392]
[1735651260917,3.096457,3420.7,3419.8,0.8256]
[1735651261120,3.096457,3420.7,3420.1,0.03375737]
[1735651261300,3.096457,3420.7,3419.8,0.8256]
[1735651261494,0.096457,3420.7,3420.2,2.95755133]
[1735651261690,0.6061027,3420.7,3420.3,0.8256]
[1735651261992,0.096457,3420.7,3420.6,2.92346]
[1735651262213,0.096457,3420.7,3420.6,3.78278714]
[1735651262623,0.096457,3420.7,3420.6,0.85932714]
[1735651262895,0.646457,3420.7,3420.6,0.85932714]
[1735651263515,0.096457,3420.7,3420.6,0.85932714]
[1735651264540,0.3611027,3420.7,3420.6,0.03372714]
[1735651264842,0.3611027,3420.7,3419.6,0.8256]
[1735651264843,3.55,3420.6,3419.6,0.8256]
[1735651265043,3.55,3420.6,3419.7,0.03268147]
[1735651265195,0.55,3420.4,3419.7,0.03268147]
[1735651265400,0.55,3420.5,3419.6,0.8256]
[1735651265643,0.55,3420.3,3419.7,0.03178002]
[1735651265824,0.897363,3420.3,3419.7,0.03178002]
[1735651266223,0.55,3419.9,3419.7,0.03178002]
[1735651266539,3.47423,3419.8,3418.9,2.04576368]
[1735651266845,0.55,3420.2,3418.9,2.04576368]
[1735651267003,2.92407,3419.9,3418.9,0.8256]
[1735651267198,0.55,3419.7,3418.9,0.8256]
[1735651268039,3.271083,3420.3,3418.9,0.8256]
[1735651268040,0.347363,3420.3,3418.9,0.8256]
[1735651268339,0.55,3420.2,3419.1,0.8256]
[1735651268535,3.55,3420.2,3419.3,2.92454]
[1735651268722,0.55,3420.2,3419.3,2.92454]
[1735651268923,3.47381,3420.2,3419.3,2.92454]
[1735651269117,0.55,3420.0,3419.1,3.75032]
[1735651269535,0.55,3420.0,3419.1,0.8256]
[1735651269720,0.55,3420.0,3419.2,2.92464]
[1735651271213,3.47403,3420.0,3419.1,0.8256]
[1735651271899,0.55,3420.0,3419.1,3.75028]
[1735651272104,1.27032903,3420.0,3419.2,2.92465]
[1735651273300,1.27032903,3420.0,3419.1,0.8256]
[1735651273500,0.72032903,3420.0,3418.7,0.8256]
[1735651273730,0.55,3419.7,3418.8,2.92493]
[1735651274041,0.55,3419.7,3418.7,0.8256]
[1735651274042,0.55,3419.5,3418.7,0.8256]
[1735651274368,3.47447,3419.5,3418.7,0.8256]
[1735651274650,0.55,3419.2,3418.3,2.92539]
[1735651275157,0.55,3419.1,3418.3,2.92539]
[1735651275359,0.55,3418.9,3417.9,3.75136]
[1735651275502,0.55,3419.2,3418.2,2.92551]
[1735651275707,0.347462,3419.1,3418.2,2.92551]
[1735651275934,0.347462,3419.1,3418.4,2.92532]
[1735651276134,0.55,3419.5,3418.4,2.92532]
[1735651276316,0.55,3419.3,3418.4,2.92532]
[1735651276523,0.55,3419.1,3418.4,2.92532]
[1735651276847,3.0,3419.2,3417.9,0.8256]
[1735651276848,3.55,3419.2,3417.9,0.8256]
[1735651277018,3.0,3418.7,3417.9,0.8256]
[1735651277207,0.55,3418.6,3417.9,0.8256]
[1735651277818,0.55,3419.0,3417.9,0.8256]
[1735651278106,0.55,3418.5,3418.0,0.03387025]
[1735651278347,3.47526,3418.5,3418.0,0.03387025]
[1735651278545,3.822786,3418.5,3417.5,3.75169]
[1735651278841,3.822786,3418.5,3417.6,0.03389448]
[1735651279550,0.897526,3418.5,3417.6,2.95991448]
[1735651280348,3.897526,3418.5,3417.6,2.95991448]
[1735651281547,3.0,3419.0,3417.6,0.03389448]
[1735651281749,0.92906225,3419.1,3418.0,0.824]
[1735651281919,1.2241115,3419.2,3417.8,2.92585]
[1735651281920,1.2241115,3419.2,3418.8,2.92493]
[1735651282126,1.2241115,3419.2,3418.6,0.824]
[1735651282419,1.2241115,3419.2,3418.9,2.92491]
[1735651282632,1.2241115,3419.2,3419.1,2.92474]
[1735651282834,1.2241115,3419.2,3419.1,2.95859337]
[1735651283019,2.92395,3420.1,3419.1,2.95859337]
[1735651283218,3.0,3420.0,3419.1,2.95859337]
[1735651283644,1.2241115,3420.3,3419.2,3.74864]
[1735651283838,0.59838388,3420.2,3419.3,0.03353593]
[1735651284308,3.59838388,3420.2,3419.3,2.95808593]
[1735651285160,0.55,3420.1,3419.3,2.95808593]
[1735651286574,0.55,3420.1,3419.3,0.03353593]
[1735651286874,0.55,3420.1,3419.2,0.824]
[1735651286875,3.55,3420.1,3419.2,0.824]
[1735651287055,0.55,3419.9,3419.2,0.824]
[1735651287259,0.55,3419.9,3419.3,0.0332875]
[1735651287642,1.2241115,3420.5,3419.2,0.824]
[1735651287842,0.55,3420.4,3419.4,2.92442]
[1735651288076,0.55,3420.4,3419.5,0.03304822]
[1735651288239,0.55,3420.2,3419.5,0.03304822]
[1735651290845,0.55,3420.2,3419.5,2.95736822]
[1735651291663,3.55,3419.7,3419.5,0.03304822]
[1735651291863,3.55,3419.6,3418.5,0.7934]
[1735651292064,6.47444,3419.5,3418.6,0.03068559]
[1735651292249,0.55,3419.2,3418.6,0.03068559]
[1735651292482,0.55,3419.2,3418.5,0.7934]
[1735651292648,0.355,3419.6,3418.5,0.7934]
[1735651292649,0.55,3418.9,3418.5,0.7934]
[1735651292990,0.347485,3418.9,3418.6,0.0286136]
[1735651293286,3.355,3419.6,3418.6,0.0286136]
[1735651293287,2.92459,3419.3,3418.6,0.0286136]
[1735651294303,0.55,3419.1,3418.6,0.0286136]
[1735651294500,0.55,3419.3,3418.6,0.0286136]
[1735651294781,3.47501,3418.8,3418.6,0.0286136]
[1735651294987,3.47501,3418.8,3418.2,0.7934]
[1735651294988,3.897501,3418.7,3418.2,0.7934]
[1735651295361,0.55,3418.6,3418.3,0.02923495]
[1735651295686,3.47518,3418.6,3417.8,0.7774]
[1735651295851,0.55,3418.4,3417.8,0.7774]
[1735651296384,3.47538,3418.4,3417.8,0.7774]
[1735651297258,3.47538,3418.4,3417.4,2.92614]
[1735651297472,0.55,3418.1,3417.4,0.7774]
[1735651297675,0.3822681,3418.5,3417.5,2.92608]
[1735651297850,3.25609181,3418.4,3417.5,2.92608]
[1735651298652,0.55,3418.3,3417.5,2.92608]
[1735651298887,0.55,3418.3,3417.4,0.7774]
[1735651299390,3.55,3418.3,3417.1,0.7774]
[1735651299553,3.47562,3418.1,3417.2,2.92636]
[1735651299752,0.55,3418.1,3417.2,2.92636]
[1735651299995,0.55,3418.1,3417.4,2.92617]
[1735651300321,4.04012396,3418.8,3417.1,0.7774]
[1735651300322,5.92512,3418.7,3417.3,2.81601246]
[1735651300528,0.71492315,3418.6,3417.3,2.81601246]
[1735651300656,0.55,3418.5,3417.3,2.81601246]
[1735651301095,0.55,3418.5,3417.6,2.92602]
[1735651301312,0.55,3418.5,3417.7,0.7774]
[1735651301529,0.55,3418.5,3417.7,3.70334]
[1735651301821,3.64010315,3418.6,3417.8,2.92581]
[1735651301822,0.55,3418.3,3417.8,2.92581]
[1735651302114,0.71492315,3418.6,3417.8,2.92581]
[1735651302115,4.1489715,3419.0,3418.0,2.92566]
[1735651302615,0.55,3418.9,3418.1,0.03028394]
[1735651303157,0.55,3419.0,3418.1,0.03028394]
[1735651303391,3.55,3418.9,3418.1,0.03028394]
[1735651303581,0.55,3418.5,3417.7,3.70334]
[1735651303778,0.55,3418.7,3417.7,3.70334]
[1735651303984,0.55,3418.7,3417.8,0.0303021]
[1735651304171,3.4751,3418.7,3417.7,3.70334]
[1735651304490,3.4751,3418.7,3417.7,0.7774]
[1735651304491,0.55,3418.5,3417.7,0.7774]
[1735651304697,0.55,3418.3,3417.7,0.7774]
[1735651304908,0.55,3418.4,3417.8,0.0303021]
[1735651305284,0.76989415,3418.8,3417.8,0.0303021]
[1735651305484,3.0,3419.1,3417.9,2.92575]
[1735651305728,0.55,3419.0,3417.9,2.92575]
[1735651306026,0.55,3419.0,3418.0,0.03028999]
[1735651306573,3.55,3418.7,3418.0,0.03028999]
[1735651307468,3.0,3419.1,3418.0,0.03028999]
[1735651307837,0.55,3418.9,3418.0,0.03028999]
[1735651308117,3.55,3418.9,3418.1,0.7774]
[1735651308267,0.55,3418.9,3418.1,3.70294]
[1735651308631,0.55,3418.9,3418.2,0.03027788]
[1735651310472,3.0,3419.0,3418.2,0.03027788]
[1735651310673,3.0,3419.3,3418.5,0.7614]
[1735651310918,2.92458,3419.3,3418.6,0.02994833]
[1735651311128,1.2241115,3419.5,3418.6,0.02994833]
[1735651311129,1.7741115,3419.4,3418.6,0.02994833]
[1735651311412,3.55,3419.1,3418.3,0.7614]
[1735651311572,0.55,3418.9,3418.3,0.7614]
[1735651311975,0.55,3418.9,3418.4,0.02996044]
[1735651312473,0.55,3418.9,3418.5,0.0294502]
[1735651312686,0.55,3418.9,3418.3,3.6868]
[1735651313010,0.55,3418.9,3418.6,0.02944415]
[1735651313184,0.55,3418.9,3418.3,3.6868]
[1735651313380,0.55,3418.9,3418.7,0.02943809]
[1735651313581,1.2622192,3418.9,3418.3,0.7614]
[1735651313783,3.55,3418.9,3418.8,0.02943204]
[1735651314106,5.74055246,3419.4,3417.9,3.68714]
[1735651314107,0.55,3418.7,3417.9,3.68714]
[1735651314404,0.55,3418.7,3417.9,0.7614]
[1735651314612,0.55,3418.6,3418.0,0.02948047]
[1735651314968,0.55,3418.8,3417.9,3.68716]
[1735651315197,0.55,3418.6,3418.1,0.02947442]
[1735651315473,0.55,3418.6,3418.2,0.02946836]
[1735651315672,0.55,3418.6,3417.9,3.68716]
[1735651315908,0.55,3418.6,3417.2,3.0]
[1735651315909,1.2241115,3419.0,3418.2,2.92551]
[1735651316210,4.2241115,3419.1,3418.2,2.92551]
[1735651316380,1.44849588,3419.0,3418.3,0.02963272]
[1735651316584,0.55,3419.0,3418.4,3.68669]
[1735651316884,0.55,3419.0,3418.5,0.02962061]
[1735651317094,1.2241115,3419.1,3418.5,0.02962061]
[1735651317394,0.55,3419.0,3418.5,2.95486061]
[1735651318502,0.55,3419.2,3418.5,2.95486061]
[1735651318822,1.31986015,3419.2,3418.6,2.9251]
[1735651318988,0.55,3419.4,3418.6,2.9251]
[1735651319182,0.55,3419.4,3418.7,0.0296085]
[1735651319583,1.2241115,3419.5,3418.8,0.7784]
[1735651319798,1.2241115,3419.5,3418.9,2.92489]
[1735651320015,2.40287867,3419.5,3418.9,0.02959639]
[1735651320412,0.55,3419.4,3418.9,0.02959639]
[1735651320631,0.55,3419.4,3418.8,3.70337]
[1735651320840,0.55,3419.4,3419.0,0.02959034]
[1735651320990,0.55,3419.4,3418.9,0.02959639]
[1735651321186,1.19947371,3419.4,3419.1,0.02958429]
[1735651321441,1.19947371,3419.4,3419.0,0.02959034]
[1735651321594,0.55,3419.4,3419.2,0.02957824]
[1735651321792,0.55,3419.4,3419.1,0.02958429]
[1735651322091,0.55,3419.4,3419.2,0.02920197]
[1735651322449,0.55,3419.1,3418.8,0.7784]
[1735651322793,0.55,3419.1,3418.9,0.02922013]
[1735651323016,0.55,3419.2,3418.8,0.7784]
[1735651323222,0.55,3419.2,3419.0,0.02921408]
[1735651323422,0.55,3419.2,3418.9,0.02922013]
[1735651323592,0.55,3419.2,3419.1,0.02920802]
[1735651323792,1.15502554,3419.2,3418.2,2.81601246]
[1735651324027,4.07968554,3419.2,3418.3,3.7038]
[1735651324327,4.07968554,3419.2,3418.3,3.73305645]
[1735651324892,1.15502554,3419.2,3418.3,0.80765645]
[1735651325093,0.55,3419.0,3418.3,0.80765645]
[1735651325625,3.55,3419.2,3418.3,0.80765645]
[1735651326001,0.55,3419.2,3418.3,0.80765645]
[1735651326206,0.55,3419.2,3418.5,2.92522]
[1735651326418,0.55,3419.2,3418.3,0.80765645]
[1735651326603,2.81601246,3418.8,3418.6,0.02923829]
[1735651326807,0.55,3418.7,3418.6,0.02923829]
[1735651327006,0.55,3418.9,3418.1,0.7937]
[1735651327329,0.55,3418.4,3418.2,0.028513]
[1735651327723,0.55,3418.4,3417.6,0.7937]
[1735651327927,0.897526,3418.4,3418.3,0.02850695]
[1735651328295,0.897526,3418.4,3417.6,0.7937]
[1735651328495,0.897526,3418.4,3417.7,0.02854328]
[1735651328838,0.55,3418.6,3417.7,0.02854328]
[1735651328994,0.55,3418.6,3417.8,0.7937]
[1735651329192,1.2241115,3418.7,3418.1,2.92556]
[1735651329459,1.2241115,3418.7,3418.2,0.7937]
[1735651329636,0.55,3418.6,3418.2,0.822213]
[1735651329934,0.55,3418.6,3418.2,0.7937]
[1735651330151,0.55,3418.4,3417.5,0.7937]
[1735651330353,0.55,3418.4,3418.3,0.02862057]
[1735651330654,0.55,3418.4,3417.5,0.7937]
[1735651330811,2.92551,3418.2,3417.5,0.7937]
[1735651331015,0.55,3418.1,3417.6,0.02866295]
[1735651331846,0.55,3418.3,3417.6,0.02866295]
[1735651332628,0.55,3418.1,3417.5,0.7937]
[1735651332829,0.55,3418.3,3417.5,0.7937]
[1735651333027,0.55,3418.1,3417.6,0.02893994]
[1735651333227,4.2241115,3418.5,3417.7,0.7937]
[1735651333440,1.2241115,3418.4,3417.7,0.7937]
[1735651333643,1.2241115,3418.4,3417.7,3.71959]
[1735651333854,1.2241115,3418.4,3417.8,0.02895624]
[1735651334016,0.55,3418.3,3417.8,0.02895624]